bitfinex-derivatives/quotes_BTCF0:USTF0_20260104
["timestamp","ask_amount","ask_price","bid_price","bid_amount"]
[1767563412775,0.03117894,91247.0,91239.0,0.00943412]
[1767563412974,0.03117894,91246.0,91239.0,0.00943412]
[1767563413177,0.0932,91251.0,91239.0,0.00943412]
[1767563413375,0.03112629,91250.0,91239.0,0.00943412]
[1767563413581,0.03112629,91249.0,91238.0,0.010965]
[1767563413786,0.03112629,91248.0,91238.0,0.010965]
[1767563413978,0.03112629,91247.0,91238.0,0.010965]
[1767563414179,0.03112629,91246.0,91238.0,0.010965]
[1767563414390,0.0932,91251.0,91238.0,0.010965]
[1767563414589,0.0311282,91250.0,91238.0,0.010965]
[1767563414788,0.0311282,91249.0,91238.0,0.010965]
[1767563414979,0.0311282,91248.0,91238.0,0.010965]
[1767563415180,0.0311282,91247.0,91238.0,0.010965]
[1767563415382,0.0311282,91246.0,91238.0,0.010965]
[1767563415583,0.0932,91251.0,91238.0,0.010965]
[1767563415882,0.03112887,91250.0,91238.0,0.010965]
[1767563416083,0.03112887,91249.0,91238.0,0.010965]
[1767563416288,0.03112887,91248.0,91238.0,0.010965]
[1767563416590,0.03112887,91247.0,91238.0,0.010965]
[1767563416789,0.03112887,91246.0,91238.0,0.010965]
[1767563416995,0.0932,91251.0,91238.0,0.010965]
[1767563417292,0.03112993,91250.0,91238.0,0.010965]
[1767563417481,0.03112993,91249.0,91238.0,0.010965]
[1767563417676,0.03112993,91248.0,91238.0,0.010965]
[1767563417882,0.03112993,91247.0,91238.0,0.010965]
[1767563418186,0.03112993,91246.0,91238.0,0.010965]
[1767563418390,0.0932,91251.0,91238.0,0.010965]
[1767563418689,0.03113102,91250.0,91238.0,0.010965]
[1767563418888,0.03113102,91249.0,91238.0,0.010965]
[1767563419086,0.03113102,91248.0,91238.0,0.010965]
[1767563419290,0.03113102,91247.0,91238.0,0.010965]
[1767563419490,0.03113102,91246.0,91238.0,0.010965]
[1767563419693,0.0932,91251.0,91238.0,0.010965]
[1767563419892,0.03113204,91250.0,91238.0,0.010965]
[1767563420101,0.03113204,91249.0,91238.0,0.010965]
[1767563420399,0.03113204,91248.0,91238.0,0.010965]
[1767563420591,0.03113204,91247.0,91238.0,0.010965]
[1767563420791,0.03113204,91246.0,91238.0,0.010965]
[1767563420991,0.0932,91251.0,91238.0,0.010965]
[1767563421194,0.03113429,91250.0,91238.0,0.010965]
[1767563421394,0.03113429,91249.0,91238.0,0.010965]
[1767563421592,0.03113429,91248.0,91238.0,0.010965]
[1767563421800,0.03113429,91247.0,91238.0,0.010965]
[1767563422001,0.03113429,91246.0,91238.0,0.010965]
[1767563422197,0.0932,91251.0,91238.0,0.010965]
[1767563422501,0.03113659,91250.0,91235.0,0.02039912]
[1767563422803,0.03113659,91249.0,91235.0,0.02039912]
[1767563423009,0.03113659,91248.0,91235.0,0.02039912]
[1767563423301,0.0932,91251.0,91235.0,0.02039912]
[1767563423602,0.03113863,91250.0,91235.0,0.010965]
[1767563423802,0.03113863,91249.0,91235.0,0.010965]
[1767563424104,0.03113863,91248.0,91235.0,0.010965]
[1767563424308,0.1058388,91250.0,91235.0,0.010965]
[1767563424490,0.03113859,91249.0,91235.0,0.010965]
[1767563424694,0.03113859,91248.0,91235.0,0.010965]
[1767563425001,0.1058388,91250.0,91235.0,0.010965]
[1767563425201,0.03103921,91249.0,91235.0,0.010965]
[1767563425403,0.03103921,91248.0,91235.0,0.010965]
[1767563425599,0.1058388,91250.0,91235.0,0.010965]
[1767563425801,0.03103926,91249.0,91235.0,0.010965]
[1767563426000,0.03103926,91248.0,91235.0,0.010965]
[1767563426303,0.1058388,91250.0,91235.0,0.010965]
[1767563426506,0.03103921,91249.0,91235.0,0.010965]
[1767563426800,0.03103921,91248.0,91235.0,0.010965]
[1767563426998,0.010963,91254.0,91237.0,0.00943412]
[1767563427205,0.03103915,91253.0,91240.0,0.00943412]
[1767563427402,0.03103915,91252.0,91240.0,0.00943412]
[1767563427705,0.03103915,91252.0,91239.0,0.03181127]
[1767563428997,0.1058388,91250.0,91239.0,0.03181127]
[1767563429196,0.03103915,91249.0,91239.0,0.03181127]
[1767563429404,0.03103915,91248.0,91239.0,0.03181127]
[1767563429594,0.1058388,91250.0,91239.0,0.03181127]
[1767563429795,0.03103905,91249.0,91239.0,0.03181127]
[1767563430089,0.03103905,91248.0,91239.0,0.03181127]
[1767563430293,0.1058388,91250.0,91236.0,0.010965]
[1767563430490,0.03103905,91249.0,91236.0,0.010965]
[1767563430693,0.03103905,91248.0,91236.0,0.010965]
[1767563430891,0.1058388,91250.0,91236.0,0.010965]
[1767563431101,0.03103905,91249.0,91236.0,0.010965]
[1767563431300,0.03103905,91248.0,91236.0,0.010965]
[1767563431489,0.1058388,91250.0,91236.0,0.010965]
[1767563431692,0.03103918,91249.0,91236.0,0.010965]
[1767563431909,0.03103918,91248.0,91236.0,0.010965]
[1767563432203,0.03103862,91247.0,91236.0,0.010965]
[1767563432405,0.03103862,91246.0,91236.0,0.010965]
[1767563432605,0.1058388,91250.0,91236.0,0.010965]
[1767563432902,0.03103785,91249.0,91236.0,0.010965]
[1767563433210,0.03103785,91248.0,91236.0,0.010965]
[1767563433397,0.03103785,91247.0,91236.0,0.010965]
[1767563433600,0.03103785,91246.0,91236.0,0.010965]
[1767563433799,0.1058388,91250.0,91236.0,0.010965]
[1767563434105,0.03103827,91249.0,91236.0,0.010965]
[1767563434306,0.03103827,91248.0,91236.0,0.010965]
[1767563434500,0.03103827,91247.0,91236.0,0.010965]
[1767563434700,0.03103827,91246.0,91236.0,0.010965]
[1767563434899,0.1058388,91250.0,91236.0,0.010965]
[1767563435109,0.03103932,91249.0,91236.0,0.010965]
[1767563435301,0.03103932,91248.0,91236.0,0.010965]
[1767563435500,0.03103932,91247.0,91233.0,0.010965]
[1767563435711,0.03103932,91246.0,91233.0,0.010965]
[1767563435899,0.1058388,91250.0,91233.0,0.010965]
[1767563436099,0.03104134,91249.0,91233.0,0.010965]
[1767563436301,0.03104134,91248.0,91231.0,0.00930445]
[1767563436501,0.03104134,91247.0,91232.0,0.010965]
[1767563436798,0.03104134,91246.0,91232.0,0.010965]
[1767563437002,0.0310415,91245.0,91232.0,0.010965]
[1767563437203,0.1168018,91250.0,91232.0,0.010965]
[1767563437410,0.03104153,91249.0,91232.0,0.010965]
[1767563437610,0.03104153,91248.0,91232.0,0.010965]
[1767563437810,0.03104153,91247.0,91232.0,0.010965]
[1767563438012,0.03104153,91246.0,91232.0,0.010965]
[1767563438313,0.1058388,91250.0,91234.0,0.010965]
[1767563438512,0.03104169,91249.0,91234.0,0.010965]
[1767563438711,0.03104169,91248.0,91234.0,0.010965]
[1767563438910,0.03104169,91247.0,91234.0,0.010965]
[1767563439111,0.03104169,91246.0,91234.0,0.010965]
[1767563439314,0.1058388,91250.0,91234.0,0.010965]
[1767563439513,0.03104193,91249.0,91234.0,0.010965]
[1767563439713,0.03104193,91248.0,91234.0,0.010965]
[1767563439915,0.03104193,91247.0,91234.0,0.010965]
[1767563440114,0.03104193,91246.0,91234.0,0.010965]
[1767563440316,0.1058388,91250.0,91234.0,0.010965]
[1767563440516,0.03094272,91249.0,91234.0,0.010965]
[1767563440719,0.03094272,91248.0,91234.0,0.010965]
[1767563440917,0.03094272,91247.0,91234.0,0.010965]
[1767563441215,0.03094272,91246.0,91234.0,0.010965]
[1767563441517,0.1058388,91250.0,91234.0,0.010965]
[1767563441717,0.0309426,91249.0,91234.0,0.010965]
[1767563441919,0.0309426,91248.0,91234.0,0.010965]
[1767563442216,0.0309426,91247.0,91234.0,0.010965]
[1767563442418,0.0309426,91246.0,91234.0,0.010965]
[1767563442604,0.1058388,91250.0,91234.0,0.010965]
[1767563442804,0.03076643,91249.0,91234.0,0.010965]
[1767563443020,0.03076643,91248.0,91234.0,0.010965]
[1767563443218,0.03076643,91247.0,91234.0,0.010965]
[1767563443420,0.03076643,91246.0,91234.0,0.010965]
[1767563443620,0.03076643,91245.0,91234.0,0.010965]
[1767563443814,0.1058388,91250.0,91234.0,0.010965]
[1767563444016,0.03076654,91249.0,91234.0,0.010965]
[1767563444216,0.03076654,91248.0,91234.0,0.010965]
[1767563444421,0.03076654,91247.0,91234.0,0.010965]
[1767563444613,0.03076654,91246.0,91234.0,0.010965]
[1767563444813,0.03076654,91245.0,91234.0,0.010965]
[1767563445014,0.1058388,91250.0,91234.0,0.010965]
[1767563445313,0.03076653,91249.0,91234.0,0.010965]
[1767563445513,0.03076653,91248.0,91234.0,0.010965]
[1767563445814,0.03076653,91247.0,91234.0,0.010965]
[1767563446115,0.03076653,91246.0,91234.0,0.010965]
[1767563446313,0.03076653,91245.0,91234.0,0.010965]
[1767563446515,0.1058388,91250.0,91234.0,0.010965]
[1767563446709,0.03076658,91249.0,91234.0,0.010965]
[1767563446909,0.03076658,91248.0,91234.0,0.010965]
[1767563447113,0.03076658,91247.0,91231.0,0.00930445]
[1767563447320,0.03076658,91246.0,91231.0,0.03952373]
[1767563447525,0.03076658,91245.0,91231.0,0.03952373]
[1767563447728,0.1058388,91250.0,91231.0,0.03952373]
[1767563447914,0.03076659,91249.0,91231.0,0.03952373]
[1767563448116,0.03076659,91248.0,91231.0,0.03952373]
[1767563448316,0.03076659,91247.0,91231.0,0.03952373]
[1767563448616,0.03076659,91246.0,91231.0,0.03952373]
[1767563448914,0.03076659,91245.0,91231.0,0.03952373]
[1767563449115,0.1058388,91250.0,91235.0,0.010965]
[1767563449314,0.03076669,91249.0,91235.0,0.010965]
[1767563449515,0.03076669,91248.0,91235.0,0.010965]
[1767563449719,0.03076669,91247.0,91235.0,0.010965]
[1767563449930,0.03076669,91246.0,91235.0,0.010965]
[1767563450117,0.03076669,91245.0,91235.0,0.010965]
[1767563450319,0.1058388,91250.0,91235.0,0.010965]
[1767563450521,0.03076669,91249.0,91235.0,0.010965]
[1767563450717,0.03076669,91248.0,91235.0,0.010965]
[1767563450917,0.03076669,91247.0,91235.0,0.010965]
[1767563451213,0.03076669,91246.0,91235.0,0.010965]
[1767563451515,0.03076669,91245.0,91235.0,0.010965]
[1767563451711,0.1058388,91250.0,91235.0,0.010965]
[1767563451916,0.03076669,91249.0,91235.0,0.010965]
[1767563452113,0.03076669,91248.0,91235.0,0.010965]
[1767563452313,0.03076669,91247.0,91235.0,0.010965]
[1767563452612,0.03076669,91246.0,91235.0,0.010965]
[1767563452813,0.03076669,91245.0,91235.0,0.010965]
[1767563453013,0.1058388,91250.0,91235.0,0.010965]
[1767563453218,0.03076682,91249.0,91235.0,0.010965]
[1767563453413,0.03076682,91248.0,91235.0,0.010965]
[1767563453617,0.03076682,91247.0,91235.0,0.010965]
[1767563453824,0.03076682,91246.0,91235.0,0.010965]
[1767563454015,0.11505481,91250.0,91235.0,0.010965]
[1767563454221,0.03076678,91249.0,91235.0,0.010965]
[1767563454418,0.03076678,91248.0,91235.0,0.010965]
[1767563454618,0.03076678,91247.0,91235.0,0.010965]
[1767563454831,0.03076678,91246.0,91235.0,0.010965]
[1767563455129,0.11505481,91250.0,91235.0,0.010965]
[1767563455331,0.03076666,91249.0,91235.0,0.010965]
[1767563455534,0.03076666,91248.0,91235.0,0.010965]
[1767563458734,0.03076666,91248.0,91237.0,0.010965]
[1767563465147,0.03076666,91247.0,91237.0,0.010965]
[1767563465337,0.03076666,91246.0,91237.0,0.010965]
[1767563465537,0.00961694,91252.0,91237.0,0.010965]
[1767563465744,0.04028557,91251.0,91237.0,0.010965]
[1767563466046,0.03066863,91250.0,91237.0,0.010965]
[1767563466745,0.04028557,91250.0,91237.0,0.010965]
[1767563466939,0.03066863,91249.0,91237.0,0.010965]
[1767563468246,0.03066863,91249.0,91231.0,0.03021928]
[1767563469160,0.03066863,91249.0,91238.0,0.010965]
[1767563470257,0.03066863,91249.0,91242.0,0.010964]
[1767563470459,0.03066863,91248.0,91242.0,0.010964]
[1767563470764,0.0932,91256.0,91242.0,0.010964]
[1767563470765,0.03066863,91247.0,91242.0,0.010964]
[1767563470961,0.0932,91256.0,91242.0,0.010964]
[1767563471165,0.0306688,91255.0,91242.0,0.010964]
[1767563471361,0.0306688,91254.0,91242.0,0.010964]
[1767563471655,0.0306688,91253.0,91242.0,0.010964]
[1767563471861,0.0306688,91252.0,91242.0,0.010964]
[1767563472060,0.0306688,91251.0,91242.0,0.010964]
[1767563472256,0.0306688,91250.0,91242.0,0.010964]
[1767563472458,0.0306688,91249.0,91242.0,0.010964]
[1767563472658,0.0306688,91248.0,91242.0,0.010964]
[1767563472863,0.0932,91256.0,91242.0,0.010964]
[1767563473066,0.03011856,91255.0,91242.0,0.010964]
[1767563473267,0.03011856,91254.0,91242.0,0.010964]
[1767563473454,0.03011856,91253.0,91242.0,0.010964]
[1767563473650,0.10281694,91256.0,91238.0,0.00903705]
[1767563473651,0.03011856,91252.0,91238.0,0.00903705]
[1767563473862,0.03787102,91259.0,91238.0,0.03892933]
[1767563474166,0.00961694,91258.0,91243.0,0.010964]
[1767563485765,0.02997353,91257.0,91243.0,0.010964]
[1767563485977,0.02997353,91256.0,91243.0,0.010964]
[1767563486175,0.02997353,91255.0,91243.0,0.010964]
[1767563486476,0.02997353,91254.0,91243.0,0.010964]
[1767563486772,0.02997353,91253.0,91243.0,0.010964]
[1767563486974,0.02997353,91252.0,91243.0,0.010964]
[1767563487173,0.02997353,91251.0,91243.0,0.010964]
[1767563487375,0.00961694,91258.0,91243.0,0.010964]
[1767563487574,0.02997324,91257.0,91243.0,0.010964]
[1767563487775,0.02997324,91256.0,91243.0,0.010964]
[1767563487978,0.02997324,91255.0,91243.0,0.010964]
[1767563488176,0.02997324,91254.0,91243.0,0.010964]
[1767563488473,0.02997324,91253.0,91243.0,0.010964]
[1767563488676,0.02997324,91252.0,91243.0,0.010964]
[1767563488876,0.02997324,91251.0,91243.0,0.010964]
[1767563489063,0.00961694,91258.0,91245.0,0.010964]
[1767563489266,0.0299653,91257.0,91245.0,0.010964]
[1767563489564,0.0299653,91256.0,91245.0,0.010964]
[1767563489766,0.0299653,91255.0,91245.0,0.010964]
[1767563489972,0.0299653,91254.0,91245.0,0.010964]
[1767563490174,0.0299653,91253.0,91245.0,0.010964]
[1767563490376,0.0299653,91252.0,91245.0,0.010964]
[1767563490576,0.0299653,91251.0,91245.0,0.010964]
[1767563490769,0.00917837,91257.0,91242.0,0.010964]
[1767563491077,0.03914418,91256.0,91242.0,0.010964]
[1767563491267,0.02996581,91255.0,91242.0,0.010964]
[1767563491469,0.02996581,91254.0,91242.0,0.010964]
[1767563491670,0.02996581,91253.0,91242.0,0.010964]
[1767563491968,0.02996581,91252.0,91242.0,0.010964]
[1767563492170,0.02996581,91251.0,91242.0,0.010964]
[1767563492371,0.00917837,91256.0,91242.0,0.010964]
[1767563492576,7.4e-07,91255.0,91250.0,0.010963]
[1767563492776,0.00917837,91268.0,91254.0,0.010963]
[1767563494172,0.00917837,91268.0,91256.0,0.010963]
[1767563496271,0.00957502,91272.0,91256.0,0.010963]
[1767563496479,0.00957502,91271.0,91256.0,0.010963]
[1767563499581,0.00957502,91269.0,91256.0,0.010963]
[1767563499778,0.02800457,91270.0,91256.0,0.040963]
[1767563499974,0.00957502,91273.0,91256.0,0.010963]
[1767563500982,0.00957502,91272.0,91256.0,0.010963]
[1767563504581,0.02913684,91271.0,91256.0,0.010963]
[1767563504781,0.02913684,91270.0,91256.0,0.010963]
[1767563504969,0.02913684,91269.0,91256.0,0.010963]
[1767563505174,0.00957502,91273.0,91256.0,0.010963]
[1767563505476,0.02913641,91272.0,91256.0,0.010963]
[1767563505673,0.02913641,91271.0,91256.0,0.010963]
[1767563505874,0.02913641,91270.0,91256.0,0.010963]
[1767563506074,0.02913641,91269.0,91256.0,0.010963]
[1767563506385,0.00957502,91273.0,91256.0,0.010963]
[1767563506575,0.02913566,91272.0,91256.0,0.010963]
[1767563506776,0.02913566,91271.0,91256.0,0.010963]
[1767563506976,0.02913566,91270.0,91256.0,0.010963]
[1767563507187,0.02913566,91269.0,91256.0,0.010963]
[1767563507483,0.00957502,91273.0,91256.0,0.010963]
[1767563507783,0.0291355,91272.0,91256.0,0.010963]
[1767563507978,0.0291355,91271.0,91256.0,0.010963]
[1767563508180,0.0291355,91270.0,91256.0,0.010963]
[1767563508378,0.0291355,91269.0,91256.0,0.010963]
[1767563508579,0.00957502,91272.0,91256.0,0.010963]
[1767563508779,0.02913819,91271.0,91256.0,0.010963]
[1767563508977,0.02913819,91270.0,91256.0,0.010963]
[1767563509178,0.02913819,91269.0,91256.0,0.010963]
[1767563509378,0.00957502,91272.0,91256.0,0.010963]
[1767563509578,0.02913846,91271.0,91256.0,0.010963]
[1767563509781,0.02913846,91270.0,91256.0,0.010963]
[1767563509973,0.02913846,91269.0,91256.0,0.010963]
[1767563510177,0.00957502,91272.0,91256.0,0.010963]
[1767563510380,0.02913852,91271.0,91256.0,0.010963]
[1767563510685,0.02913852,91270.0,91256.0,0.010963]
[1767563510887,0.02913852,91269.0,91256.0,0.010963]
[1767563511076,0.00957502,91272.0,91256.0,0.010963]
[1767563511276,0.02913912,91271.0,91256.0,0.010963]
[1767563511485,0.02913912,91270.0,91256.0,0.010963]
[1767563511682,0.02913912,91269.0,91256.0,0.010963]
[1767563511986,0.00957502,91272.0,91256.0,0.010963]
[1767563512178,0.02913973,91271.0,91256.0,0.010963]
[1767563512380,0.02913973,91270.0,91256.0,0.010963]
[1767563512584,0.02913973,91269.0,91256.0,0.010963]
[1767563512778,0.00957502,91272.0,91256.0,0.010963]
[1767563512979,0.02914103,91271.0,91256.0,0.010963]
[1767563513172,0.02914103,91270.0,91256.0,0.010963]
[1767563513375,0.02914103,91269.0,91256.0,0.010963]
[1767563513588,0.00957502,91272.0,91256.0,0.010963]
[1767563513790,0.02914258,91271.0,91256.0,0.010963]
[1767563514086,0.02914258,91270.0,91256.0,0.010963]
[1767563514290,0.02914258,91269.0,91256.0,0.010963]
[1767563514490,0.00957502,91272.0,91256.0,0.010963]
[1767563514690,0.02914502,91271.0,91256.0,0.010963]
[1767563514891,0.02914502,91270.0,91256.0,0.010963]
[1767563515080,0.02914502,91269.0,91256.0,0.010963]
[1767563515281,0.02914988,91268.0,91256.0,0.010963]
[1767563515484,0.00957502,91272.0,91256.0,0.010963]
[1767563515684,0.02915006,91271.0,91256.0,0.010963]
[1767563515981,0.02915006,91270.0,91258.0,0.010962]
[1767563516186,0.02915006,91269.0,91258.0,0.010962]
[1767563516388,0.02915006,91268.0,91258.0,0.010962]
[1767563516587,0.00957502,91273.0,91258.0,0.010962]
[1767563516787,0.0291536,91272.0,91258.0,0.010962]
[1767563517082,0.0291536,91271.0,91258.0,0.010962]
[1767563517394,0.0291536,91270.0,91258.0,0.010962]
[1767563517582,0.0291536,91269.0,91258.0,0.010962]
[1767563517781,0.0291536,91268.0,91258.0,0.010962]
[1767563517982,0.00957502,91273.0,91258.0,0.010962]
[1767563518176,0.0291568,91272.0,91258.0,0.010962]
[1767563518386,0.13216457,91275.0,91260.0,0.010962]
[1767563518387,0.0291568,91271.0,91260.0,0.010962]
[1767563518594,0.0291568,91270.0,91260.0,0.010962]
[1767563518788,0.00957502,91272.0,91260.0,0.010962]
[1767563518789,0.0291568,91269.0,91260.0,0.010962]
[1767563518984,0.00957502,91272.0,91260.0,0.010962]
[1767563519183,0.02916037,91271.0,91260.0,0.010962]
[1767563519485,0.02916037,91270.0,91260.0,0.010962]
[1767563519683,0.02916037,91269.0,91260.0,0.010962]
[1767563519884,0.02916037,91268.0,91260.0,0.010962]
[1767563520084,0.00957502,91272.0,91260.0,0.010962]
[1767563520285,0.02916486,91271.0,91260.0,0.010962]
[1767563520484,0.02916486,91270.0,91260.0,0.010962]
[1767563520684,0.02916486,91269.0,91260.0,0.010962]
[1767563520884,0.02916486,91268.0,91260.0,0.010962]
[1767563521085,0.00957502,91272.0,91260.0,0.010962]
[1767563521384,0.02917055,91271.0,91260.0,0.010962]
[1767563521589,5.5e-07,91270.0,91260.0,0.03]
[1767563521786,0.00952661,91278.0,91260.0,0.010962]
[1767563521985,0.00952661,91277.0,91262.0,0.010962]
[1767563522387,0.00952661,91276.0,91262.0,0.010962]
[1767563522996,0.00952661,91276.0,91256.0,0.00988233]
[1767563522997,0.00952661,91275.0,91259.0,0.010962]
[1767563523997,0.00952661,91275.0,91261.0,0.010962]
[1767563525694,0.00952661,91285.0,91265.0,0.1156498]
[1767563525887,0.00952661,91283.0,91265.0,0.03]
[1767563526091,0.00952661,91283.0,91272.0,0.010961]
[1767563526294,0.00952661,91282.0,91268.0,0.010961]
[1767563526594,0.00952661,91280.0,91268.0,0.010961]
[1767563528690,0.00952661,91280.0,91262.0,0.0932]
[1767563528890,0.00952661,91280.0,91262.0,0.1232]
[1767563529093,0.00952661,91280.0,91262.0,0.0932]
[1767563529299,0.00952661,91280.0,91268.0,0.010961]
[1767563529499,0.00952661,91279.0,91268.0,0.010961]
[1767563531889,0.00952661,91279.0,91268.0,0.040961]
[1767563532092,0.00952661,91279.0,91268.0,0.010961]
[1767563533794,0.00952661,91279.0,91262.0,0.0932]
[1767563533989,0.00952661,91275.0,91262.0,0.0932]
[1767563534398,0.00952661,91275.0,91264.0,0.010962]
[1767563534695,0.00952661,91275.0,91263.0,0.010962]
[1767563535398,0.00952661,91266.0,91259.0,0.0832]
[1767563535596,0.00952661,91266.0,91250.0,0.10576747]
[1767563535597,0.00952661,91266.0,91258.0,0.0932]
[1767563535799,0.02823076,91267.0,91258.0,0.0932]
[1767563536001,0.00952661,91270.0,91258.0,0.0932]
[1767563536396,0.11529408,91270.0,91255.0,0.010963]
[1767563536601,0.11529408,91270.0,91257.0,0.010962]
[1767563536602,0.00952661,91269.0,91257.0,0.010962]
[1767563541202,0.00952661,91269.0,91256.0,0.0932]
[1767563541505,0.00952661,91269.0,91257.0,0.010962]
[1767563542514,0.02823076,91272.0,91259.0,0.010962]
[1767563542805,0.10576747,91270.0,91259.0,0.010962]
[1767563544204,0.10576747,91270.0,91256.0,0.0932]
[1767563544505,0.02823076,91272.0,91256.0,0.0932]
[1767563545207,0.02823076,91272.0,91261.0,0.010962]
[1767563548507,0.00952661,91274.0,91262.0,0.010962]
[1767563548704,0.10576747,91272.0,91256.0,0.10308233]
[1767563549509,0.03775737,91277.0,91264.0,0.010962]
[1767563549912,0.03775737,91284.0,91266.0,0.010961]
[1767563550208,0.10576747,91280.0,91266.0,0.010961]
[1767563550404,0.02869612,91279.0,91266.0,0.010961]
[1767563555811,0.03780921,91279.0,91266.0,0.010961]
[1767563556110,0.02869612,91278.0,91266.0,0.010961]
[1767563556310,0.02869612,91277.0,91266.0,0.010961]
[1767563556511,0.02869612,91276.0,91266.0,0.010961]
[1767563556712,0.00911309,91279.0,91266.0,0.010961]
[1767563556912,0.02861105,91278.0,91266.0,0.010961]
[1767563557212,0.02861105,91277.0,91266.0,0.010961]
[1767563557509,0.02861105,91276.0,91266.0,0.010961]
[1767563557707,0.02226295,91289.0,91271.0,0.010961]
[1767563557906,0.00911309,91280.0,91268.0,0.010961]
[1767563558313,0.00911309,91280.0,91266.0,0.0932]
[1767563559020,0.11488056,91280.0,91266.0,0.0932]
[1767563559216,0.11488056,91280.0,91269.0,0.010961]
[1767563570629,0.00911309,91279.0,91269.0,0.010961]
[1767563572131,0.10576747,91280.0,91269.0,0.010961]
[1767563572318,0.02575633,91281.0,91269.0,0.010961]
[1767563576238,0.02575633,91281.0,91271.0,0.010961]
[1767563576438,0.00911309,91278.0,91267.0,0.010961]
[1767563576625,0.02575633,91279.0,91267.0,0.010961]
[1767563577132,0.02575633,91279.0,91269.0,0.010961]
[1767563579135,0.00911309,91281.0,91269.0,0.010961]
[1767563579434,0.10576747,91280.0,91266.0,0.104161]
[1767563583237,0.02842588,91279.0,91266.0,0.104161]
[1767563583434,0.11512097,91280.0,91266.0,0.104161]
[1767563583636,0.0377807,91279.0,91266.0,0.104161]
[1767563583824,0.0093535,91279.0,91266.0,0.104161]
[1767563584536,0.0093535,91288.0,91270.0,0.02673745]
[1767563584747,0.0093535,91286.0,91269.0,0.010961]
[1767563585043,0.02842892,91285.0,91269.0,0.010961]
[1767563585251,0.03778242,91285.0,91271.0,0.010961]
[1767563585440,0.02842892,91284.0,91271.0,0.010961]
[1767563586245,0.03778242,91284.0,91271.0,0.010961]
[1767563586443,0.02842892,91283.0,91271.0,0.010961]
[1767563586843,0.03778242,91283.0,91271.0,0.010961]
[1767563587044,0.02842892,91282.0,91271.0,0.010961]
[1767563587637,0.0093535,91281.0,91268.0,0.010961]
[1767563587843,0.03778242,91280.0,91270.0,0.010961]
[1767563588042,0.02842892,91279.0,91270.0,0.010961]
[1767563588242,0.02842892,91279.0,91266.0,0.0932]
[1767563589151,0.02842892,91279.0,91270.0,0.010961]
[1767563589752,9.2e-07,91279.0,91268.0,0.02673745]
[1767563589951,0.0093535,91283.0,91266.0,0.0932]
[1767563590552,0.02463659,91284.0,91266.0,0.10232172]
[1767563591052,0.0093535,91286.0,91266.0,0.10232172]
[1767563592155,0.0093535,91286.0,91271.0,0.010961]
[1767563595152,0.0093535,91284.0,91268.0,0.010961]
[1767563595555,0.0093535,91284.0,91270.0,0.010961]
[1767563596261,0.0093535,91284.0,91266.0,0.12905917]
[1767563597162,0.0093535,91284.0,91271.0,0.010961]
[1767563599261,0.0093535,91284.0,91268.0,0.010961]
[1767563601162,0.0093535,91284.0,91270.0,0.010961]
[1767563601863,0.02808785,91283.0,91270.0,0.010961]
[1767563602055,0.02808785,91282.0,91270.0,0.010961]
[1767563602251,0.02808785,91281.0,91270.0,0.010961]
[1767563602455,0.0093535,91284.0,91270.0,0.010961]
[1767563602656,0.02808787,91283.0,91270.0,0.010961]
[1767563602856,0.0093535,91284.0,91270.0,0.010961]
[1767563602857,0.02808787,91282.0,91270.0,0.010961]
[1767563603058,0.02808787,91281.0,91267.0,0.010961]
[1767563603358,0.0093535,91284.0,91267.0,0.010961]
[1767563603557,0.02808792,91283.0,91267.0,0.010961]
[1767563603851,0.02808792,91282.0,91267.0,0.010961]
[1767563604057,0.02808792,91281.0,91267.0,0.010961]
[1767563604262,0.0093535,91283.0,91267.0,0.010961]
[1767563604465,0.02808801,91282.0,91267.0,0.010961]
[1767563604659,0.02808801,91281.0,91267.0,0.010961]
[1767563604859,0.0093535,91283.0,91267.0,0.010961]
[1767563605164,0.02808796,91282.0,91267.0,0.010961]
[1767563605364,0.02808796,91281.0,91267.0,0.010961]
[1767563605561,0.0093535,91283.0,91267.0,0.010961]
[1767563605761,0.02808804,91282.0,91267.0,0.010961]
[1767563605963,0.02808804,91281.0,91267.0,0.010961]
[1767563606161,0.02463659,91285.0,91267.0,0.010961]
[1767563606373,0.02808801,91284.0,91267.0,0.010961]
[1767563606568,0.02808801,91283.0,91267.0,0.010961]
[1767563606769,0.02808801,91282.0,91267.0,0.010961]
[1767563606969,0.02808801,91281.0,91267.0,0.010961]
[1767563607169,0.02463659,91285.0,91267.0,0.010961]
[1767563607367,0.0093535,91283.0,91267.0,0.010961]
[1767563607566,0.02808814,91282.0,91267.0,0.010961]
[1767563607769,0.02808814,91281.0,91267.0,0.010961]
[1767563607965,0.0093535,91283.0,91267.0,0.010961]
[1767563608163,0.02808801,91282.0,91267.0,0.010961]
[1767563608374,0.02808801,91281.0,91267.0,0.010961]
[1767563608672,0.0093535,91283.0,91267.0,0.010961]
[1767563608870,0.02808819,91282.0,91267.0,0.010961]
[1767563609170,0.02808819,91281.0,91267.0,0.010961]
[1767563609373,0.0093535,91283.0,91267.0,0.010961]
[1767563609672,0.02808831,91282.0,91267.0,0.010961]
[1767563609874,0.02808831,91281.0,91267.0,0.010961]
[1767563610074,0.0093535,91283.0,91267.0,0.010961]
[1767563610374,0.02808828,91282.0,91269.0,0.010961]
[1767563610573,0.02808828,91281.0,91269.0,0.010961]
[1767563610761,0.0093535,91283.0,91269.0,0.010961]
[1767563610966,0.02808825,91282.0,91269.0,0.010961]
[1767563611170,0.02808825,91281.0,91269.0,0.010961]
[1767563611372,0.0093535,91283.0,91269.0,0.010961]
[1767563611678,0.02808835,91282.0,91269.0,0.010961]
[1767563611870,0.02808835,91281.0,91269.0,0.010961]
[1767563612178,0.0093535,91283.0,91269.0,0.010961]
[1767563612473,0.02808829,91282.0,91269.0,0.010961]
[1767563612675,0.02808829,91281.0,91269.0,0.010961]
[1767563612974,0.0093535,91283.0,91269.0,0.010961]
[1767563613174,0.02808838,91282.0,91269.0,0.010961]
[1767563613369,0.02808838,91281.0,91269.0,0.010961]
[1767563613571,0.0093535,91283.0,91269.0,0.010961]
[1767563613871,0.0280885,91282.0,91269.0,0.010961]
[1767563614070,0.0280885,91281.0,91269.0,0.010961]
[1767563614265,0.0093535,91283.0,91269.0,0.010961]
[1767563614464,0.02808862,91282.0,91269.0,0.010961]
[1767563614669,0.02808862,91281.0,91269.0,0.010961]
[1767563614960,0.02463659,91285.0,91269.0,0.010961]